bitfinex/quotes_BTCUSD_20250109
["timestamp","ask_amount","ask_price","bid_price","bid_amount"]
[1736456637789,0.00014784,92211.0,92202.0,0.216915]
[1736456638002,0.00014784,92211.0,92203.0,0.10429976]
[1736456638207,0.02170318,92210.0,92201.0,0.006]
[1736456638410,0.216903,92207.0,92193.0,0.0104]
[1736456638621,0.00014784,92211.0,92180.0,0.216965]
[1736456638821,0.00014784,92211.0,92174.0,0.29668]
[1736456639054,0.216939,92192.0,92175.0,0.10429976]
[1736456639274,0.32119576,92210.0,92173.0,0.00017]
[1736456639275,0.0216939,92191.0,92173.0,0.00017]
[1736456639475,0.316912,92203.0,92173.0,0.00017]
[1736456639476,0.216961,92183.0,92173.0,0.00017]
[1736456640610,0.216961,92183.0,92173.0,0.00517]
[1736456640845,0.25,92202.0,92173.0,0.00117]
[1736456640846,0.216971,92179.0,92173.0,0.00117]
[1736456641119,0.0216971,92178.0,92173.0,0.00117]
[1736456641331,0.216973,92177.0,92173.0,0.00117]
[1736456642389,0.433948,92177.0,92173.0,0.00117]
[1736456642847,0.15,92174.0,92173.0,0.00117]
[1736456643055,0.15,92174.0,92143.0,0.03760998]
[1736456643283,0.217019,92158.0,92144.0,0.10429976]
[1736456644572,0.216991,92170.0,92145.0,0.00108512]
[1736456644779,0.433982,92170.0,92146.0,0.10429976]
[1736456644985,0.216991,92170.0,92147.0,0.00108504]
[1736456645201,0.216991,92170.0,92152.0,0.217031]
[1736456645407,0.2605893,92169.0,92153.0,0.10429976]
[1736456645589,0.0435973,92169.0,92144.0,0.00114817]
[1736456645827,0.217016,92159.0,92145.0,0.10429976]
[1736456646030,0.1216971,92178.0,92145.0,0.10429976]
[1736456646242,0.20429976,92177.0,92145.0,0.10429976]
[1736456646459,0.217027,92155.0,92144.0,0.00114817]
[1736456646857,0.1,92173.0,92144.0,0.00014817]
[1736456647035,0.217027,92155.0,92145.0,0.001]
[1736456647269,0.03759969,92172.0,92146.0,0.10429976]
[1736456647470,0.0246971,92178.0,92146.0,0.10429976]
[1736456647682,0.216984,92173.0,92157.0,0.21702]
[1736456648067,0.218984,92173.0,92157.0,0.20801998]
[1736456648286,0.435968,92173.0,92153.0,0.217028]
[1736456648481,0.216993,92169.0,92154.0,0.10429976]
[1736456648829,0.218984,92173.0,92154.0,0.10429976]
[1736456649190,0.216994,92169.0,92154.0,0.10429976]
[1736456649979,0.217002,92165.0,92154.0,0.10529976]
[1736456650187,0.0495958,92173.0,92155.0,0.217025]
[1736456650188,0.0515958,92173.0,92155.0,0.217025]
[1736456650542,0.216997,92167.0,92155.0,0.10429976]
[1736456651495,0.002,92165.0,92155.0,0.10429976]
[1736456651814,0.434008,92164.0,92145.0,0.217049]
[1736456652017,0.002,92165.0,92152.0,0.217031]
[1736456652239,0.002,92165.0,92153.0,0.10429976]
[1736456652773,0.002,92165.0,92164.0,0.0793]
[1736456653021,0.216948,92188.0,92164.0,0.18359976]
[1736456653270,0.0756,92211.0,92166.0,0.023]
[1736456653520,0.10429976,92210.0,92209.0,0.216898]
[1736456653800,0.1,92230.0,92167.0,0.32129676]
[1736456653801,0.216871,92221.0,92204.0,0.216908]
[1736456654080,0.216871,92221.0,92191.0,0.0793]
[1736456654081,0.216882,92216.0,92198.0,0.216924]
[1736456654361,0.216882,92216.0,92197.0,0.0104]
[1736456654362,0.2169,92208.0,92197.0,0.0104]
[1736456654647,0.1000851,92220.0,92190.0,0.0104]
[1736456654911,0.00014784,92208.0,92190.0,0.0104]
[1736456655170,0.216919,92201.0,92190.0,0.0104]
[1736456655671,0.00014784,92208.0,92179.0,0.216969]
[1736456655926,0.216917,92201.0,92180.0,0.10429976]
[1736456656420,0.216917,92201.0,92181.0,0.216964]
[1736456656662,0.216917,92201.0,92186.0,0.216952]
[1736456657083,0.216927,92197.0,92183.0,0.216959]
[1736456657290,0.216927,92197.0,92184.0,0.10429976]
[1736456657492,0.0216917,92200.0,92178.0,0.0793]
[1736456657746,0.001,92201.0,92183.0,0.216958]
[1736456657996,0.001,92201.0,92178.0,0.0793]
[1736456657997,0.001,92201.0,92195.0,0.216931]
[1736456658251,0.00014784,92208.0,92196.0,0.10429976]
[1736456658526,0.00014784,92208.0,92203.0,0.216912]
[1736456658751,0.00014784,92208.0,92203.0,0.433824]
[1736456659049,0.00014784,92208.0,92203.0,0.216912]
[1736456659460,0.00014784,92208.0,92205.0,0.515614]
[1736456659676,0.00014784,92208.0,92202.0,0.0104]
[1736456659888,0.18269976,92207.0,92195.0,0.001]
[1736456660100,0.1,92196.0,92195.0,0.001]
[1736456660323,0.10429976,92196.0,92195.0,0.001]
[1736456660527,0.02447532,92206.0,92159.0,0.00108488]
[1736456660528,0.21691,92204.0,92159.0,0.00108488]
[1736456660740,0.10429976,92203.0,92161.0,0.15]
[1736456660950,0.00014784,92208.0,92179.0,0.0765]
[1736456661157,0.10429976,92207.0,92179.0,0.0765]
[1736456661371,0.433886,92190.0,92179.0,0.0765]
[1736456661579,0.216943,92190.0,92179.0,0.0765]
[1736456661784,0.433886,92190.0,92179.0,0.0765]
[1736456663093,0.006,92196.0,92180.0,0.09529974]
[1736456663314,0.02044476,92206.0,92180.0,0.09529974]
[1736456663315,0.21692,92200.0,92181.0,0.216964]
[1736456663520,0.216916,92202.0,92185.0,0.216955]
[1736456663740,0.216916,92202.0,92186.0,0.10429976]
[1736456663948,0.216881,92217.0,92187.0,0.0334]
[1736456664163,0.216895,92211.0,92196.0,0.216927]
[1736456664374,0.0456,92239.0,92204.0,0.216908]
[1736456664583,0.0456,92239.0,92206.0,0.216905]
[1736456664764,0.216864,92224.0,92207.0,0.10538412]
[1736456665230,0.216831,92238.0,92207.0,0.27838412]
[1736456665480,0.0832,92264.0,92207.0,0.27729976]
[1736456665680,0.216829,92239.0,92207.0,0.27729976]
[1736456665905,0.00614784,92208.0,92207.0,0.27729976]
[1736456666322,0.00814784,92208.0,92207.0,0.27729976]
[1736456666758,0.00614784,92208.0,92207.0,0.27729976]
[1736456666969,0.00714784,92208.0,92207.0,0.28429976]
[1736456667124,0.00114784,92208.0,92207.0,0.28429976]
[1736456667319,0.00114784,92208.0,92207.0,0.28629976]
[1736456667320,0.00014784,92208.0,92207.0,0.28629976]
[1736456667527,0.00114784,92208.0,92207.0,0.28629976]
[1736456667735,0.216794,92254.0,92208.0,0.273]
[1736456667945,0.216794,92254.0,92219.0,0.366875]
[1736456668306,0.15,92258.0,92220.0,0.023]
[1736456668507,8.51e-05,92245.0,92234.0,0.216839]
[1736456668686,8.51e-05,92245.0,92235.0,0.00108402]
[1736456668893,8.51e-05,92245.0,92236.0,0.216835]
[1736456669099,8.51e-05,92245.0,92235.0,0.01036]
[1736456669525,8.51e-05,92245.0,92236.0,0.21791908]
[1736456669728,8.51e-05,92245.0,92237.0,0.216831]
[1736456669968,8.51e-05,92245.0,92241.0,0.216821]
[1736456671913,0.0010851,92245.0,92241.0,0.009]
[1736456672125,0.216816,92244.0,92241.0,0.009]
[1736456672334,0.21682,92242.0,92241.0,0.012]
[1736456672735,0.32111976,92242.0,92241.0,0.012]
[1736456672938,0.32111976,92242.0,92241.0,0.009]
[1736456673165,0.216857,92227.0,92215.0,0.01035998]
[1736456675620,0.433676,92235.0,92217.0,0.216879]
[1736456676258,0.216842,92233.0,92217.0,0.216879]
[1736456676704,0.0433676,92234.0,92217.0,0.216879]
[1736456676905,0.21683,92238.0,92218.0,0.00108426]
[1736456677132,0.216816,92244.0,92225.0,0.216859]
[1736456677133,0.004,92235.0,92225.0,0.216859]
[1736456677359,0.216808,92248.0,92233.0,0.21684]
[1736456677932,0.216816,92244.0,92226.0,0.216858]
[1736456678147,0.216816,92244.0,92226.0,0.42471598]
[1736456678382,0.216816,92244.0,92230.0,0.216847]
[1736456679533,0.216808,92248.0,92230.0,0.216847]
[1736456679775,0.04345491,92245.0,92230.0,0.216847]
[1736456679994,0.04345491,92245.0,92226.0,0.20785798]
[1736456679995,0.0030851,92245.0,92240.0,0.216824]
[1736456680202,8.51e-05,92245.0,92240.0,0.216824]
[1736456680414,8.51e-05,92245.0,92240.0,0.01036]
[1736456680630,8.51e-05,92245.0,92242.0,0.21682]
[1736456680886,8.51e-05,92245.0,92244.0,0.216816]
[1736456681092,8.51e-05,92245.0,92244.0,0.32111576]
[1736456681945,0.0010851,92245.0,92244.0,0.32111576]
[1736456682853,0.0010851,92245.0,92244.0,0.32611576]
[1736456683264,8.51e-05,92245.0,92244.0,0.32111576]
[1736456683458,0.0010851,92245.0,92244.0,0.33011576]
[1736456683676,0.0010851,92245.0,92244.0,0.33311576]
[1736456683819,8.51e-05,92245.0,92244.0,0.32411576]
[1736456684018,8.51e-05,92245.0,92244.0,0.33211576]
[1736456684272,0.0010851,92245.0,92244.0,0.008]
[1736456684442,8.51e-05,92245.0,92238.0,0.01036]
[1736456684677,0.0010851,92245.0,92244.0,0.009]
[1736456684879,0.01988982,92245.0,92244.0,0.013]
[1736456685140,8.51e-05,92245.0,92244.0,0.004]
[1736456686480,0.0010851,92245.0,92244.0,0.013]
[1736456686686,0.10438486,92245.0,92244.0,0.004]
[1736456686891,0.10438486,92245.0,92217.0,0.216879]
[1736456686892,0.10438486,92245.0,92220.0,0.01036]
[1736456687100,0.216844,92233.0,92220.0,0.01036]
[1736456687315,0.216844,92233.0,92217.0,0.216879]
[1736456687926,0.03309715,92233.0,92214.0,0.216886]
[1736456688103,0.216844,92232.0,92218.0,0.216875]
[1736456688283,0.216844,92232.0,92220.0,0.002]
[1736456688650,0.292144,92232.0,92218.0,0.216875]
[1736456688883,0.292144,92232.0,92208.0,0.216899]
[1736456688884,0.216864,92224.0,92208.0,0.216899]
[1736456689293,0.25,92241.0,92212.0,0.21689]
[1736456689294,0.21686,92226.0,92212.0,0.21689]
[1736456689721,0.10429976,92225.0,92170.0,0.043459]
[1736456689926,0.10429976,92225.0,92157.0,0.217019]
[1736456689927,0.1,92223.0,92217.0,0.002]
[1736456690133,0.0774,92218.0,92217.0,0.002]
[1736456690329,0.18169976,92218.0,92217.0,0.002]
[1736456690570,0.433758,92217.0,92212.0,0.001]
[1736456690773,0.17584554,92216.0,92212.0,0.001]
[1736456691003,0.433768,92215.0,92212.0,0.001]
[1736456691208,0.10429976,92214.0,92192.0,0.216938]
[1736456691429,0.216866,92223.0,92193.0,0.10538437]
[1736456691643,0.216879,92217.0,92193.0,0.10429976]
[1736456691855,0.0434745,92217.0,92207.0,0.216901]
[1736456692061,0.001,92218.0,92195.0,0.216931]
[1736456692062,0.001,92218.0,92204.0,0.216909]
[1736456692485,0.001,92218.0,92195.0,0.216931]
[1736456692486,0.001,92218.0,92205.0,0.10429976]
[1736456692711,0.001,92218.0,92214.0,0.216884]
[1736456692946,0.004,92217.0,92212.0,0.01036]
[1736456693172,0.216846,92232.0,92212.0,0.01036]
[1736456693173,0.216846,92231.0,92212.0,0.00135998]
[1736456693378,0.15,92240.0,92212.0,0.00135998]
[1736456693585,0.216849,92230.0,92212.0,0.00135998]
[1736456693795,0.32114876,92230.0,92212.0,0.00135998]
[1736456694043,0.10429976,92230.0,92212.0,0.00135998]
[1736456694255,0.10429976,92229.0,92212.0,0.00435998]
[1736456694470,0.216856,92227.0,92212.0,0.008]
[1736456694745,0.216904,92207.0,92201.0,0.01036]
[1736456695296,0.216914,92203.0,92186.0,0.216952]
[1736456695562,0.433828,92203.0,92186.0,0.216952]
[1736456696102,0.433828,92203.0,92191.0,0.21694]
[1736456696103,0.216914,92203.0,92191.0,0.21694]
[1736456696637,0.216914,92203.0,92186.0,0.21709984]
[1736456696894,0.0216914,92202.0,92186.0,0.22509984]
[1736456697493,0.0216914,92202.0,92191.0,0.003]
[1736456697525,0.0216914,92202.0,92191.0,0.011]
[1736456697727,0.0216914,92202.0,92190.0,0.216942]
[1736456698346,0.05711558,92226.0,92192.0,0.023]
[1736456698508,0.216871,92221.0,92205.0,0.216905]
[1736456698945,0.216863,92224.0,92209.0,0.216897]
[1736456699620,0.216873,92220.0,92201.0,0.01036]
[1736456699847,0.001,92202.0,92201.0,0.01036]
[1736456700053,0.216873,92220.0,92202.0,0.216915]
[1736456700287,0.2602466,92220.0,92206.0,0.216904]
[1736456700514,0.218863,92224.0,92206.0,0.216904]
[1736456700758,0.216863,92224.0,92206.0,0.216904]
[1736456701246,0.216863,92224.0,92171.0,0.048]
[1736456701247,0.216919,92201.0,92171.0,0.048]
[1736456701495,0.216919,92201.0,92187.0,0.21695]
[1736456701898,0.0498,92219.0,92177.0,0.01036]
[1736456701899,0.216936,92193.0,92177.0,0.01036]
[1736456702149,0.216921,92200.0,92183.0,0.216958]
[1736456702417,0.26970974,92218.0,92179.0,0.15]
[1736456702669,0.1,92228.0,92202.0,0.216914]
[1736456702969,0.21688,92217.0,92202.0,0.216914]
[1736456703214,0.21689,92213.0,92202.0,0.20791398]
[1736456703702,0.10429976,92227.0,92187.0,0.10429976]
[1736456703703,0.216869,92222.0,92210.0,0.216896]
[1736456704342,0.001,92217.0,92203.0,0.01036]
[1736456704557,0.001,92217.0,92214.0,0.433772]
[1736456704812,0.001,92217.0,92216.0,0.216882]
[1736456705104,0.001,92217.0,92216.0,0.57078176]
[1736456705882,0.001,92217.0,92216.0,0.54778176]
[1736456706127,0.216823,92241.0,92217.0,0.15]
[1736456706417,0.21731662,92241.0,92224.0,0.216861]
[1736456706673,0.21731662,92241.0,92228.0,0.216853]
[1736456706674,0.00049362,92241.0,92228.0,0.216853]
[1736456707517,0.00149362,92241.0,92234.0,0.216837]
[1736456707802,0.00049362,92241.0,92240.0,0.216825]
[1736456708052,0.00049362,92241.0,92238.0,0.216829]
[1736456708328,0.00049362,92241.0,92238.0,0.20782898]
[1736456708602,0.00049362,92241.0,92238.0,0.42465798]
[1736456708852,0.00049362,92241.0,92238.0,0.20782898]
[1736456709631,0.00049362,92241.0,92238.0,0.20982898]
[1736456710151,0.00049362,92241.0,92240.0,0.293925]
[1736456710438,0.00049362,92241.0,92240.0,0.58158476]
[1736456711461,0.00149362,92241.0,92240.0,0.59058476]
[1736456712075,0.00149362,92241.0,92240.0,0.59258476]
[1736456712591,0.00149362,92241.0,92240.0,0.59058476]
[1736456712843,0.00049362,92241.0,92240.0,0.58858476]
[1736456713331,0.00149362,92241.0,92240.0,0.59058476]
[1736456713584,0.00049362,92241.0,92240.0,0.58458476]
[1736456714103,0.00149362,92241.0,92240.0,0.34348476]
[1736456714405,0.00049362,92241.0,92240.0,0.33448476]
[1736456714622,0.00149362,92241.0,92240.0,0.239185]
[1736456715151,0.00049362,92241.0,92240.0,0.227185]
[1736456715431,0.00049362,92241.0,92240.0,0.232185]
[1736456715965,0.00049362,92241.0,92240.0,0.227185]
[1736456716249,0.00049362,92241.0,92240.0,0.232185]
[1736456716517,0.00149362,92241.0,92240.0,0.014]
[1736456717769,0.00049362,92241.0,92240.0,0.10929976]
[1736456718026,0.00049362,92241.0,92240.0,0.11138375]
[1736456718234,0.00049362,92241.0,92240.0,0.11338375]
[1736456718500,0.00049362,92241.0,92240.0,0.33612423]
[1736456718773,0.00049362,92241.0,92240.0,0.27729976]
[1736456719002,6.2e-07,92241.0,92240.0,0.50679976]
[1736456719579,6.2e-07,92241.0,92240.0,0.50279976]
[1736456719791,6.2e-07,92241.0,92240.0,0.51179976]
[1736456720042,6.2e-07,92241.0,92240.0,0.51679976]
[1736456720298,8.51e-05,92245.0,92244.0,0.1]
[1736456720556,0.00023313,92245.0,92244.0,0.37838346]
[1736456720821,0.00023313,92245.0,92244.0,0.37729976]
[1736456721735,0.00123313,92245.0,92244.0,0.28629976]
[1736456722238,0.00123313,92245.0,92244.0,0.47179976]
[1736456722484,8.51e-05,92278.0,92275.0,0.216743]
[1736456722724,8.51e-05,92278.0,92260.0,0.20365604]
[1736456722725,0.0827,92275.0,92244.0,0.017]
[1736456722944,0.01830182,92274.0,92244.0,0.017]
[1736456723160,0.216758,92269.0,92255.0,0.216789]
[1736456723411,0.216749,92273.0,92256.0,0.216788]
[1736456723627,0.216748,92273.0,92257.0,0.216784]
[1736456723848,0.216748,92273.0,92245.0,0.10429976]
[1736456723849,0.216748,92273.0,92261.0,0.216775]
[1736456724056,0.216748,92273.0,92250.0,0.01036]
[1736456724057,0.216748,92273.0,92257.0,0.216783]
[1736456724479,0.216758,92269.0,92257.0,0.216783]
[1736456724717,0.216758,92269.0,92255.0,0.219789]
[1736456724932,0.216758,92269.0,92246.0,0.01122998]
[1736456724933,0.216775,92262.0,92249.0,0.01036]
[1736456725142,0.216775,92262.0,92261.0,0.001]
[1736456725350,0.216767,92265.0,92261.0,0.001]
[1736456725769,0.216771,92263.0,92261.0,0.001]
[1736456726438,0.216771,92263.0,92251.0,0.216798]
[1736456726876,0.216771,92263.0,92257.0,0.003]
[1736456727085,0.216771,92263.0,92249.0,0.216804]
[1736456727086,0.433543,92263.0,92249.0,0.216804]
[1736456727517,0.218771,92263.0,92253.0,0.216794]
[1736456727743,0.216771,92263.0,92261.0,0.001]
[1736456728161,0.002,92263.0,92248.0,0.01032]
[1736456728339,0.21674,92277.0,92249.0,0.0010839]
[1736456728546,0.001,92263.0,92255.0,0.216789]
[1736456728752,0.216773,92262.0,92251.0,0.216799]
[1736456728963,0.216763,92267.0,92255.0,0.21679]
[1736456729375,0.433526,92267.0,92255.0,0.21679]
[1736456729589,0.216763,92267.0,92252.0,0.216797]
[1736456729834,0.216772,92263.0,92252.0,0.216797]
[1736456730455,0.217763,92267.0,92256.0,0.216786]
[1736456730894,0.216763,92267.0,92256.0,0.216786]
[1736456731315,0.217763,92267.0,92256.0,0.216786]
[1736456731548,0.001,92267.0,92256.0,0.2385646]
[1736456731769,0.001,92267.0,92258.0,0.15]
[1736456731982,0.002,92267.0,92266.0,0.216764]
[1736456732196,0.002,92267.0,92266.0,0.47106376]
[1736456732647,5.2e-07,92267.0,92266.0,0.49406376]
[1736456732857,5.2e-07,92267.0,92266.0,0.5641624]
[1736456733072,5.2e-07,92267.0,92266.0,0.6467624]
[1736456733291,8.51e-05,92278.0,92275.0,0.366743]
[1736456733509,8.51e-05,92278.0,92275.0,0.54044276]
[1736456733685,8.51e-05,92278.0,92275.0,0.64044276]
[1736456733958,8.51e-05,92278.0,92275.0,0.66222136]
[1736456734140,8.51e-05,92278.0,92275.0,0.56222136]
[1736456734984,8.51e-05,92278.0,92275.0,0.54044276]
[1736456735901,8.51e-05,92278.0,92275.0,0.231063]
[1736456736344,8.51e-05,92278.0,92275.0,0.33136276]
[1736456736554,0.00123307,92276.0,92275.0,0.34036276]
[1736456736764,0.00023307,92276.0,92275.0,0.33436276]
[1736456736971,0.00123307,92276.0,92275.0,0.012]
[1736456737381,0.04472,92276.0,92275.0,0.012]
[1736456737593,0.00123307,92276.0,92275.0,0.012]
[1736456737808,0.00023307,92276.0,92275.0,0.003]
[1736456738005,0.00023307,92276.0,92275.0,0.21074298]
[1736456738219,0.00023307,92276.0,92271.0,0.216751]
[1736456738424,0.00023307,92276.0,92273.0,0.216748]
[1736456738640,0.00023307,92276.0,92275.0,0.006]
[1736456738850,0.00023307,92276.0,92275.0,0.11138345]
[1736456739067,0.00023307,92276.0,92275.0,0.11329976]
[1736456739685,0.00023307,92276.0,92275.0,0.11029976]
[1736456739889,0.00023307,92276.0,92275.0,0.26438334]
[1736456740115,0.00023307,92276.0,92275.0,0.31271164]
[1736456740534,0.00123307,92276.0,92275.0,0.26629976]
[1736456740738,0.00023307,92276.0,92275.0,0.25729976]
[1736456741146,0.00123307,92276.0,92275.0,0.26629976]
[1736456741381,0.00123307,92276.0,92275.0,0.26329976]
[1736456741585,0.00023307,92276.0,92275.0,0.25429976]
[1736456741776,0.00123307,92276.0,92275.0,0.26529976]
[1736456742190,0.00123307,92276.0,92275.0,0.26329976]
[1736456742397,0.00123307,92276.0,92275.0,0.28629976]
[1736456742596,0.00123307,92276.0,92275.0,0.28829976]
[1736456745551,0.00014919,92276.0,92275.0,0.28829976]
[1736456747626,8.51e-05,92294.0,92293.0,0.216701]
[1736456747835,8.51e-05,92294.0,92293.0,0.34400076]
[1736456748048,8.51e-05,92294.0,92293.0,0.48500074]
[1736456748953,8.51e-05,92294.0,92293.0,0.48700074]
[1736456750895,8.51e-05,92294.0,92293.0,0.31400074]
[1736456751121,8.51e-05,92294.0,92293.0,0.002]
[1736456753021,8.51e-05,92294.0,92286.0,0.20971498]
[1736456753227,8.51e-05,92294.0,92287.0,0.216715]
[1736456754413,8.51e-05,92294.0,92287.0,0.002]
[1736456755017,0.216701,92293.0,92287.0,0.002]
[1736456755409,8.51e-05,92294.0,92287.0,0.002]
[1736456755851,0.44270076,92293.0,92287.0,0.002]
[1736456756059,0.25,92288.0,92287.0,0.002]
[1736456756268,0.25,92288.0,92256.0,0.32827577]
[1736456756269,0.216777,92261.0,92256.0,0.32827577]
[1736456756467,0.216778,92260.0,92256.0,0.32827577]
[1736456756765,0.216778,92260.0,92256.0,0.00014797]
[1736456757781,0.216778,92260.0,92256.0,0.00514797]
[1736456758766,0.216778,92260.0,92256.0,0.00614797]
[1736456759462,0.25538583,92260.0,92256.0,0.00614797]
[1736456759685,0.47216483,92260.0,92256.0,0.00614797]
[1736456759886,0.216783,92258.0,92256.0,0.00614797]
[1736456760095,0.32108276,92258.0,92256.0,0.00614797]
[1736456760883,0.10429976,92257.0,92256.0,0.00514797]
[1736456761089,0.20643452,92257.0,92256.0,0.00014797]
[1736456761980,0.221783,92258.0,92256.0,0.00014797]
[1736456762182,0.005,92258.0,92256.0,0.00014797]
[1736456762395,0.003,92258.0,92257.0,0.216785]
[1736456762609,0.003,92258.0,92256.0,0.00014797]
[1736456763043,0.003,92258.0,92250.0,0.21822795]
[1736456763261,0.21676,92268.0,92255.0,0.21679]
[1736456763472,0.15,92289.0,92264.0,0.216768]
[1736456763473,0.216743,92276.0,92264.0,0.216768]
[1736456763682,0.00014789,92275.0,92251.0,0.14780376]
[1736456763888,0.00014789,92275.0,92252.0,0.17408384]
[1736456764098,0.00014789,92275.0,92270.0,0.433507]
[1736456764776,0.00014789,92275.0,92272.0,0.4335]
[1736456764981,0.00014789,92275.0,92272.0,0.53779976]
[1736456765397,0.00014789,92275.0,92274.0,0.366745]
[1736456765604,0.00014789,92275.0,92274.0,0.47104476]
[1736456767050,0.00114789,92275.0,92274.0,0.594922]
[1736456767258,0.00114789,92275.0,92274.0,0.60304476]
[1736456767480,0.00014789,92275.0,92274.0,0.59404476]
[1736456767738,8.51e-05,92294.0,92293.0,0.366701]
[1736456768022,8.51e-05,92294.0,92293.0,0.50428076]
[1736456769423,0.00405829,92300.0,92299.0,0.366687]
[1736456769693,0.00405829,92300.0,92299.0,0.49398676]
[1736456769956,3.9e-07,92302.0,92301.0,0.566682]
[1736456770240,8.51e-05,92313.0,92312.0,0.389656]
[1736456770532,0.00023307,92313.0,92312.0,0.49395576]
[1736456770767,0.00023307,92313.0,92312.0,0.47095576]
[1736456771028,0.00023307,92313.0,92312.0,0.48123576]
[1736456771246,0.00023307,92313.0,92312.0,0.11457976]
[1736456771452,0.00023307,92313.0,92312.0,0.12357976]
[1736456771700,0.00023307,92313.0,92312.0,0.11457976]
[1736456771962,0.00023307,92313.0,92312.0,0.14157976]
[1736456772198,0.00023307,92313.0,92312.0,0.1426629]
[1736456772473,0.00023307,92313.0,92312.0,0.1386629]
[1736456773179,0.00023307,92313.0,92312.0,0.1456629]
[1736456773432,0.00023307,92313.0,92312.0,0.1396629]
[1736456773693,0.00023307,92313.0,92312.0,0.1476629]
[1736456773936,0.00023307,92313.0,92312.0,0.1396629]
[1736456774466,0.00023307,92313.0,92312.0,0.1466629]
[1736456774712,0.00023307,92313.0,92312.0,0.1386629]
[1736456775225,0.00023307,92313.0,92312.0,0.1486629]
[1736456775498,0.216565,92351.0,92316.0,0.023]
[1736456775762,0.00049304,92349.0,92335.0,0.2166]
[1736456776019,0.00049304,92349.0,92339.0,0.216591]
[1736456776256,0.00049304,92349.0,92339.0,0.27034008]
[1736456776516,0.00049304,92349.0,92345.0,0.023]
[1736456776795,0.00049304,92349.0,92346.0,0.10429976]
[1736456777226,0.00049304,92349.0,92346.0,0.53745176]
[1736456777429,0.00249304,92349.0,92346.0,0.53745176]
[1736456777633,0.00249304,92349.0,92348.0,0.216572]
[1736456777837,0.00049304,92349.0,92348.0,0.32087176]
[1736456778045,0.00049304,92349.0,92348.0,0.31187174]
[1736456778259,0.00049304,92349.0,92348.0,0.33487174]
[1736456779095,0.00049304,92349.0,92348.0,0.33587174]
[1736456779336,0.00049304,92349.0,92348.0,0.41347441]
[1736456779512,0.00049304,92349.0,92348.0,0.41247441]
[1736456779737,0.00049304,92349.0,92348.0,0.33487174]
[1736456779946,0.00049304,92349.0,92348.0,0.34287174]
[1736456780155,0.00049304,92349.0,92348.0,0.33687174]
[1736456780604,0.00049304,92349.0,92348.0,0.34587174]
[1736456780808,0.00049304,92349.0,92348.0,0.33687174]
[1736456781013,0.00049304,92349.0,92348.0,0.42287441]
[1736456781222,0.00049304,92349.0,92348.0,0.01928]
[1736456781434,0.00049304,92349.0,92348.0,0.01028]
[1736456781647,0.00049304,92349.0,92348.0,0.01228]
[1736456782094,0.00049304,92349.0,92348.0,0.01028]
[1736456782303,0.00049304,92349.0,92346.0,0.216574]
[1736456782499,0.00049304,92349.0,92348.0,0.002]
[1736456782933,0.00049304,92349.0,92348.0,0.011]
[1736456783114,0.00049304,92349.0,92346.0,0.43315]
[1736456783530,0.00049304,92349.0,92346.0,0.44215]
[1736456783798,0.00049304,92349.0,92346.0,0.225574]
[1736456784168,0.00049304,92349.0,92346.0,0.216574]
[1736456784385,0.00049304,92349.0,92348.0,0.366572]
[1736456784593,0.00049304,92349.0,92348.0,0.49387176]
[1736456784821,0.00049304,92349.0,92348.0,0.57587176]
[1736456785009,0.00049304,92349.0,92348.0,0.57787176]
[1736456786173,0.00049304,92349.0,92348.0,0.58087176]
[1736456786377,0.00049304,92349.0,92348.0,0.66164434]
[1736456787025,0.00049304,92349.0,92348.0,0.65964434]
[1736456787451,0.00049304,92349.0,92348.0,0.65664434]
[1736456787876,0.00049304,92349.0,92348.0,0.65964434]
[1736456788082,0.00049304,92349.0,92348.0,0.47387176]
[1736456788296,0.00049304,92349.0,92348.0,0.49015176]
[1736456788497,0.00049304,92349.0,92346.0,0.216574]
[1736456788699,0.00049304,92349.0,92348.0,0.003]
[1736456789110,0.00049304,92349.0,92348.0,0.10429976]
[1736456789525,0.00049304,92349.0,92348.0,0.11629976]
[1736456789740,0.00049304,92349.0,92348.0,0.012]
[1736456790353,0.00049304,92349.0,92348.0,0.228572]
[1736456790619,0.00049304,92349.0,92348.0,0.52872896]
[1736456790796,0.00049304,92349.0,92348.0,0.49687176]
[1736456791005,0.00049304,92349.0,92348.0,0.49387176]
[1736456791173,0.00049304,92349.0,92348.0,0.50287176]
[1736456791359,0.00049304,92349.0,92348.0,0.49687176]
[1736456791845,0.00049304,92349.0,92348.0,0.50287176]
[1736456792046,0.00049304,92349.0,92348.0,0.15]
[1736456792250,0.00049304,92349.0,92348.0,0.16]
[1736456792576,0.00049304,92349.0,92348.0,0.15]
[1736456792778,0.00049304,92349.0,92348.0,0.152]
[1736456793803,0.00049304,92349.0,92348.0,0.002]
[1736456794211,0.00049304,92349.0,92347.0,0.216572]
[1736456794410,0.00049304,92349.0,92339.0,0.443463]
[1736456794637,0.00049304,92349.0,92348.0,0.009]
[1736456794839,0.02219804,92349.0,92348.0,0.009]
[1736456795052,0.216572,92348.0,92324.0,0.01028]
[1736456795250,0.216574,92347.0,92332.0,0.216607]
[1736456795477,0.10429976,92347.0,92315.0,0.01022084]
[1736456795697,0.21661,92332.0,92316.0,0.216647]
[1736456795897,0.10429976,92346.0,92316.0,0.216647]
[1736456796467,0.216638,92320.0,92309.0,0.01045]
[1736456796675,0.216623,92327.0,92314.0,0.21665]
[1736456796875,0.216623,92327.0,92311.0,0.216658]
[1736456797663,0.0216623,92326.0,92309.0,0.00017]
[1736456797873,0.0784,92343.0,92309.0,0.00017]
[1736456797874,0.1,92342.0,92309.0,0.00017]
[1736456798082,0.216629,92324.0,92310.0,0.20766098]
[1736456798843,0.433258,92324.0,92310.0,0.20766098]
[1736456799150,0.21664,92319.0,92309.0,0.00017]
[1736456799528,0.21663,92323.0,92309.0,0.00017]
[1736456799731,0.21663,92323.0,92310.0,0.216661]
[1736456800152,0.216626,92325.0,92310.0,0.216661]
[1736456800742,0.216636,92321.0,92309.0,0.00017]
[1736456801100,0.216632,92323.0,92310.0,0.216661]
[1736456801302,0.216627,92325.0,92312.0,0.216656]
[1736456801518,0.216636,92321.0,92309.0,0.00017]
[1736456801838,0.0216632,92323.0,92309.0,0.00017]
[1736456802040,0.216617,92329.0,92310.0,0.216661]